Workbook

Sheet Data
A1: Nummer taak | B1: Naam taak | C1: Omschrijving | D1: Persoon | E1: Begin | F1: Einde | G1: Geschatte tijd | H1: Kosten
A2: 1 | B2: ="taak " & A2 -> taak 1 | E2: 2019-09-02 | F2: 2019-12-23
A3: 1.1 | B3: taak 1.1 | E3: 2019-09-02 | F3: 2019-09-06 | G3: =_xlfn.AGGREGATE( AGGR_FUN, AGGR_OPT, G4:G7 ) * nFACTOR -> 17 | H3: =_xlfn.AGGREGATE( AGGR_FUN, AGGR_OPT, H4:H7 ) * nFACTOR -> 6800
A4: 1.1.1 | B4: taak 1.1.1 | C4: ="omschr " & A4 -> omschr 1.1.1 | D4: ="persoon " & A4 -> persoon 1.1.1 | E4: 2019-09-02 | F4: 2019-09-02 | G4: 2 | H4: =G4*400 -> 800
A5: 1.1.2 | B5: taak 1.1.2 | C5: ="omschr " & A5 -> omschr 1.1.2 | D5: ="persoon " & A5 -> persoon 1.1.2 | E5: 2019-09-02 | F5: 2019-09-02 | G5: 3 | H5: 1200
A6: 1.1.3 | B6: taak 1.1.3 | C6: ="omschr " & A6 -> omschr 1.1.3 | D6: ="persoon " & A6 -> persoon 1.1.3 | E6: 2019-09-03 | F6: 2019-09-03 | G6: 3 | H6: 1200
A7: 1.1.4 | B7: taak 1.1.4 | C7: ="omschr " & A7 -> omschr 1.1.4 | D7: ="persoon " & A7 -> persoon 1.1.4 | E7: 2019-09-04 | F7: 2019-09-06 | G7: 9 | H7: 3600
A8: 1.2 | B8: taak 1.2 | E8: 2019-09-09 | F8: 2019-09-12 | G8: =_xlfn.AGGREGATE( AGGR_FUN, AGGR_OPT, G9:G12 ) * nFACTOR -> 88 | H8: =_xlfn.AGGREGATE( AGGR_FUN, AGGR_OPT, H9:H12 ) * nFACTOR -> 35200
A9: 1.2.1 | B9: taak 1.2.1 | C9: ="omschr " & A9 -> omschr 1.2.1 | D9: ="persoon " & A9 -> persoon 1.2.1 | E9: 2019-09-09 | F9: 2019-09-12 | G9: 32 | H9: =G9*400 -> 12800
A10: 1.3 | B10: taak 1.3 | E10: 2019-09-16 | F10: 2019-09-27 | G10: =_xlfn.AGGREGATE( AGGR_FUN, AGGR_OPT, G11:G14 ) * nFACTOR -> 72 | H10: =_xlfn.AGGREGATE( AGGR_FUN, AGGR_OPT, H11:H14 ) * nFACTOR -> 28800
A11: 1.3.1 | B11: taak 1.3.1 | C11: ="omschr " & A11 -> omschr 1.3.1 | D11: ="persoon " & A11 -> persoon 1.3.1 | E11: 2019-09-16 | F11: 2019-09-20 | G11: 40 | H11: =G11*400 -> 16000
A12: 1.3.2 | B12: taak 1.3.2 | C12: ="omschr " & A12 -> omschr 1.3.2 | D12: ="persoon " & A12 -> persoon 1.3.2 | E12: 2019-09-23 | F12: 2019-09-24 | G12: 16 | H12: 6400
A13: 1.3.3 | B13: taak 1.3.3 | C13: ="omschr " & A13 -> omschr 1.3.3 | D13: ="persoon " & A13 -> persoon 1.3.3 | E13: 2019-09-24 | F13: 2019-09-25 | G13: 8 | H13: 3200
A14: 1.3.4 | B14: taak 1.3.4 | C14: ="omschr " & A14 -> omschr 1.3.4 | D14: ="persoon " & A14 -> persoon 1.3.4 | E14: 2019-09-26 | F14: 2019-09-27 | G14: 8 | H14: 3200
A15: 1.4 | B15: taak 1.4 | E15: 2019-10-01 | F15: 2019-11-22 | G15: =_xlfn.AGGREGATE( AGGR_FUN, AGGR_OPT, G16:G19 ) * nFACTOR -> 28 | H15: =_xlfn.AGGREGATE( AGGR_FUN, AGGR_OPT, H16:H19 ) * nFACTOR -> 11200
A16: 1.4.1 | B16: taak 1.4.1 | E16: 2019-10-01 | F16: 2019-10-18 | G16: =_xlfn.AGGREGATE( AGGR_FUN, AGGR_OPT, G17:G20 ) * nFACTOR -> 40 | H16: =_xlfn.AGGREGATE( AGGR_FUN, AGGR_OPT, H17:H20 ) * nFACTOR -> 16000
A17: 1.4.1.1 | B17: taak 1.4.1.1 | C17: ="omschr " & A17 -> omschr 1.4.1.1 | D17: ="persoon " & A17 -> persoon 1.4.1.1 | E17: 2019-10-01 | F17: 2019-10-04 | G17: 12 | H17: =G17*400 -> 4800
A18: 1.4.1.2 | B18: taak 1.4.1.2 | C18: ="omschr " & A18 -> omschr 1.4.1.2 | D18: ="persoon " & A18 -> persoon 1.4.1.2 | E18: 2019-10-07 | F18: 2019-10-11 | G18: 12 | H18: 4800
A19: 1.4.1.3 | B19: taak 1.4.1.3 | C19: ="omschr " & A19 -> omschr 1.4.1.3 | D19: ="persoon " & A19 -> persoon 1.4.1.3 | E19: 2019-10-07 | F19: 2019-10-11 | G19: 4 | H19: 1600
A20: 1.4.1.4 | B20: taak 1.4.1.4 | C20: ="omschr " & A20 -> omschr 1.4.1.4 | D20: ="persoon " & A20 -> persoon 1.4.1.4 | E20: 2019-10-14 | F20: 2019-10-18 | G20: 12 | H20: 4800
A21: 1.4.2 | B21: taak 1.4.2 | E21: 2019-10-21 | F21: 2019-10-25 | G21: =_xlfn.AGGREGATE( AGGR_FUN, AGGR_OPT, G22:G25 ) * nFACTOR -> 10 | H21: =_xlfn.AGGREGATE( AGGR_FUN, AGGR_OPT, H22:H25 ) * nFACTOR -> 4000
A22: 1.4.2.1 | B22: taak 1.4.2.1 | C22: ="omschr " & A22 -> omschr 1.4.2.1 | D22: ="persoon " & A22 -> persoon 1.4.2.1 | E22: 2019-10-21 | F22: 2019-10-22 | G22: 4 | H22: =G22*400 -> 1600
A23: 1.4.2.2 | B23: taak 1.4.2.2 | C23: ="omschr " & A23 -> omschr 1.4.2.2 | D23: ="persoon " & A23 -> persoon 1.4.2.2 | E23: 2019-10-21 | F23: 2019-10-22 | G23: 2 | H23: 800
A24: 1.4.2.3 | B24: taak 1.4.2.3 | C24: ="omschr " & A24 -> omschr 1.4.2.3 | D24: ="persoon " & A24 -> persoon 1.4.2.3 | E24: 2019-10-23 | F24: 2019-10-24 | G24: 2 | H24: 800
A25: 1.4.2.4 | B25: taak 1.4.2.4 | C25: ="omschr " & A25 -> omschr 1.4.2.4 | D25: ="persoon " & A25 -> persoon 1.4.2.4 | E25: 2019-10-25 | F25: 2019-10-25 | G25: 2 | H25: 800
A26: 1.4.3 | B26: taak 1.4.3 | E26: 2019-10-01 | F26: 2019-10-25 | G26: =_xlfn.AGGREGATE( AGGR_FUN, AGGR_OPT, G27:G30 ) * nFACTOR -> 33 | H26: =_xlfn.AGGREGATE( AGGR_FUN, AGGR_OPT, H27:H30 ) * nFACTOR -> 13200
A27: 1.4.3.1 | B27: taak 1.4.3.1 | C27: ="omschr " & A27 -> omschr 1.4.3.1 | D27: ="persoon " & A27 -> persoon 1.4.3.1 | E27: 2019-10-01 | F27: 2019-10-04 | G27: 12 | H27: =G27*400 -> 4800
A28: 1.4.3.2 | B28: taak 1.4.3.2 | C28: ="omschr " & A28 -> omschr 1.4.3.2 | D28: ="persoon " & A28 -> persoon 1.4.3.2 | E28: 2019-10-07 | F28: 2019-10-11 | G28: 12 | H28: 4800
A29: 1.4.3.3 | B29: taak 1.4.3.3 | C29: ="omschr " & A29 -> omschr 1.4.3.3 | D29: ="persoon " & A29 -> persoon 1.4.3.3 | E29: 2019-10-14 | F29: 2019-10-16 | G29: 1 | H29: 400
A30: 1.4.3.4 | B30: taak 1.4.3.4 | C30: ="omschr " & A30 -> omschr 1.4.3.4 | D30: ="persoon " & A30 -> persoon 1.4.3.4 | E30: 2019-10-23 | F30: 2019-10-25 | G30: 8 | H30: 3200
A31: 1.4.4 | B31: taak 1.4.4 | E31: 2019-11-04 | F31: 2019-11-22 | G31: =_xlfn.AGGREGATE( AGGR_FUN, AGGR_OPT, G32:G35 ) * nFACTOR -> 32 | H31: =_xlfn.AGGREGATE( AGGR_FUN, AGGR_OPT, H32:H35 ) * nFACTOR -> 12800
A32: 1.4.4.1 | B32: taak 1.4.4.1 | C32: ="omschr " & A32 -> omschr 1.4.4.1 | D32: ="persoon " & A32 -> persoon 1.4.4.1 | E32: 2019-11-04 | F32: 2019-11-08 | G32: 8 | H32: =G32*400 -> 3200
A33: 1.4.4.2 | B33: taak 1.4.4.2 | C33: ="omschr " & A33 -> omschr 1.4.4.2 | D33: ="persoon " & A33 -> persoon 1.4.4.2 | E33: 2019-11-11 | F33: 2019-11-11 | G33: 4 | H33: 1600
A34: 1.4.4.3 | B34: ="taak " & A34 -> taak 1.4.4.3 | C34: ="omschr " & A34 -> omschr 1.4.4.3 | D34: ="persoon " & A34 -> persoon 1.4.4.3 | E34: 2019-11-12 | F34: 2019-11-15 | G34: 12 | H34: 4800
A35: 1.4.4.4 | B35: taak 1.4.4.4 | C35: ="omschr " & A35 -> omschr 1.4.4.4 | D35: ="persoon " & A35 -> persoon 1.4.4.4 | E35: 2019-11-18 | F35: 2019-11-22 | G35: 8 | H35: 3200
A36: 1.4.5 | B36: taak 1.4.5 | E36: 2019-11-18 | F36: 2019-11-18 | G36: =_xlfn.AGGREGATE( AGGR_FUN, AGGR_OPT, G37:G40 ) * nFACTOR -> 5 | H36: =_xlfn.AGGREGATE( AGGR_FUN, AGGR_OPT, H37:H40 ) * nFACTOR -> 2000
A37: 1.4.5.1 | B37: taak 1.4.5.1 | C37: ="omschr " & A37 -> omschr 1.4.5.1 | D37: ="persoon " & A37 -> persoon 1.4.5.1 | E37: 2019-11-18 | F37: 2019-11-18 | G37: 1 | H37: =G37*400 -> 400
A38: 1.4.5.2 | B38: taak 1.4.5.2 | C38: ="omschr " & A38 -> omschr 1.4.5.2 | D38: ="persoon " & A38 -> persoon 1.4.5.2 | E38: 2019-11-18 | F38: 2019-11-18 | G38: 2 | H38: 800
A39: 1.4.5.3 | B39: taak 1.4.5.3 | C39: ="omschr " & A39 -> omschr 1.4.5.3 | D39: ="persoon " & A39 -> persoon 1.4.5.3 | E39: 2019-11-18 | F39: 2019-11-18 | G39: 1 | H39: 400
A40: 1.4.5.4 | B40: taak 1.4.5.4 | C40: ="omschr " & A40 -> omschr 1.4.5.4 | D40: ="persoon " & A40 -> persoon 1.4.5.4 | E40: 2019-11-18 | F40: 2019-11-18 | G40: 1 | H40: 400
A41: 1.5 | B41: taak 1.5 | E41: 2019-11-25 | F41: 2019-12-20 | G41: =_xlfn.AGGREGATE( AGGR_FUN, AGGR_OPT, G42:G45 ) * nFACTOR -> 21 | H41: =_xlfn.AGGREGATE( AGGR_FUN, AGGR_OPT, H42:H45 ) * nFACTOR -> 8400
A42: 1.5.1 | B42: taak 1.5.1 | C42: ="omschr " & A42 -> omschr 1.5.1 | D42: ="persoon " & A42 -> persoon 1.5.1 | E42: 2019-11-25 | F42: 2019-11-28 | G42: 1 | H42: =G42*400 -> 400
A43: 1.5.2 | B43: taak 1.5.2 | C43: ="omschr " & A43 -> omschr 1.5.2 | D43: ="persoon " & A43 -> persoon 1.5.2 | E43: 2019-11-29 | F43: 2019-11-29 | G43: 8 | H43: 3200
A44: 1.5.3 | B44: taak 1.5.3 | C44: ="omschr " & A44 -> omschr 1.5.3 | D44: ="persoon " & A44 -> persoon 1.5.3 | E44: 2019-12-02 | F44: 2019-12-06 | G44: 4 | H44: 1600
A45: 1.5.4 | B45: taak 1.5.4 | C45: ="omschr " & A45 -> omschr 1.5.4 | D45: ="persoon " & A45 -> persoon 1.5.4 | E45: 2019-12-09 | F45: 2019-12-13 | G45: 8 | H45: 3200
A46: 1.5.5 | B46: taak 1.5.5 | C46: ="omschr " & A46 -> omschr 1.5.5 | D46: ="persoon " & A46 -> persoon 1.5.5 | E46: 2019-12-16 | F46: 2019-12-20 | G46: 2 | H46: 800
A47: 1.6 | B47: taak 1.6 | E47: 2019-12-16 | F47: 2019-12-20 | G47: =_xlfn.AGGREGATE( AGGR_FUN, AGGR_OPT, G48:G51 ) * nFACTOR -> 21 | H47: =_xlfn.AGGREGATE( AGGR_FUN, AGGR_OPT, H48:H51 ) * nFACTOR -> 8400
A48: 1.6.1 | B48: taak 1.6.1 | C48: ="omschr " & A48 -> omschr 1.6.1 | D48: ="persoon " & A48 -> persoon 1.6.1 | E48: 2019-12-16 | F48: 2019-12-20 | G48: 8 | H48: =G48*400 -> 3200
A49: 1.6.2 | B49: taak 1.6.2 | C49: ="omschr " & A49 -> omschr 1.6.2 | D49: ="persoon " & A49 -> persoon 1.6.2 | E49: 2019-12-16 | F49: 2019-12-20 | G49: 1 | H49: 400
A50: 1.7 | B50: taak 1.7 | E50: 2019-12-23 | F50: 2019-12-23 | G50: =_xlfn.AGGREGATE( AGGR_FUN, AGGR_OPT, G51:G54 ) * nFACTOR -> 12 | H50: =_xlfn.AGGREGATE( AGGR_FUN, AGGR_OPT, H51:H54 ) * nFACTOR -> 4800
A51: 1.7.1 | B51: taak 1.7.1 | C51: ="omschr " & A51 -> omschr 1.7.1 | D51: ="persoon " & A51 -> persoon 1.7.1 | E51: 2019-12-23 | F51: 2019-12-23 | G51: 12 | H51: =G51*400 -> 4800
